[Event "December 12 Early 2023"]
[Site "https://www.chess.com"]
[Date "2023.12.12"]
[Round "1"]
[White "Parra Gomez, Adrian"]
[Black "Komov, Roman"]
[Result "0-1"]
[Board "112"]
[TimeControl "180+1"]
[WhiteFideId "3513106"]
[BlackFideId "24175714"]
[WhiteElo "2401"]
[BlackElo "2702"]
[WhiteTeam "CUB"]
[BlackTeam "RUS"]
[WhiteClock "0:00:00"]
[BlackClock "0:00:20"]

1. d4 {[%clk 0:03:00]}  Nf6 {[%clk 0:02:58]} 2. c4 {[%clk 0:03:00]}  e6 {[%clk 0:02:59]} 3. Nc3 {[%clk 0:02:59]}  Bb4 {[%clk 0:02:59]} 4. f3 {[%clk 0:03:00]}  d5 {[%clk 0:02:56]} 5. a3 {[%clk 0:02:59]}  Be7 {[%clk 0:02:56]} 6. cxd5 {[%clk 0:03:00]}  exd5 {[%clk 0:02:57]} 7. Bf4 {[%clk 0:02:56]}  O-O {[%clk 0:02:56]} 8. Bg3 {[%clk 0:02:56]}  c5 {[%clk 0:02:56]} 9. e3 {[%clk 0:02:53]}  Nc6 {[%clk 0:02:55]} 10. Nge2 {[%clk 0:02:52]}  Re8 {[%clk 0:02:55]} 11. Bf2 {[%clk 0:02:47]}  cxd4 {[%clk 0:02:51]} 12. Nxd4 {[%clk 0:02:48]}  Bc5 {[%clk 0:02:51]} 13. Be2 {[%clk 0:02:38]}  Bd7 {[%clk 0:02:37]} 14. O-O {[%clk 0:02:38]}  Qe7 {[%clk 0:02:37]} 15. Rc1 {[%clk 0:02:29]}  Rad8 {[%clk 0:02:36]} 16. Kh1 {[%clk 0:02:25]}  Bd6 {[%clk 0:02:32]} 17. Bd3 {[%clk 0:02:09]}  Bb8 {[%clk 0:02:22]} 18. Re1 {[%clk 0:01:51]}  Ne5 {[%clk 0:02:22]} 19. Bf5 {[%clk 0:01:48]}  a6 {[%clk 0:02:10]} 20. Bg3 {[%clk 0:01:42]}  Ba7 {[%clk 0:02:05]} 21. Bxd7 {[%clk 0:01:37]}  Rxd7 {[%clk 0:02:05]} 22. Qb3 {[%clk 0:01:29]}  Nd3 {[%clk 0:01:38]} 23. Nxd5 {[%clk 0:01:29]}  Nxd5 {[%clk 0:01:38]} 24. Qxd3 {[%clk 0:01:29]}  h5 {[%clk 0:01:30]} 25. Nf5 {[%clk 0:01:24]}  Qe6 {[%clk 0:01:29]} 26. e4 {[%clk 0:01:14]}  Nb4 {[%clk 0:01:29]} 27. Qc4 {[%clk 0:01:01]}  Nd3 {[%clk 0:01:25]} 28. Qxe6 {[%clk 0:01:00]}  fxe6 {[%clk 0:01:23]} 29. Nd6 {[%clk 0:00:52]}  Red8 {[%clk 0:01:23]} 30. e5 {[%clk 0:00:47]}  Nxc1 {[%clk 0:01:12]} 31. Rxc1 {[%clk 0:00:47]}  Bd4 {[%clk 0:01:10]} 32. Rc2 {[%clk 0:00:42]}  Rf8 {[%clk 0:01:02]} 33. h4 {[%clk 0:00:36]}  g6 {[%clk 0:00:57]} 34. b4 {[%clk 0:00:31]}  Be3 {[%clk 0:00:56]} 35. Rc4 {[%clk 0:00:28]}  Kg7 {[%clk 0:00:53]} 36. Kh2 {[%clk 0:00:26]}  g5 {[%clk 0:00:48]} 37. hxg5 {[%clk 0:00:25]}  Bxg5 {[%clk 0:00:49]} 38. Kh3 {[%clk 0:00:24]}  Be7 {[%clk 0:00:49]} 39. Rd4 {[%clk 0:00:18]}  Bxd6 {[%clk 0:00:47]} 40. exd6 {[%clk 0:00:19]}  Rf5 {[%clk 0:00:46]} 41. Kh4 {[%clk 0:00:17]}  Kf6 {[%clk 0:00:45]} 42. Rc4 {[%clk 0:00:12]}  e5 {[%clk 0:00:44]} 43. Rc7 {[%clk 0:00:11]}  Ke6 {[%clk 0:00:44]} 44. Bh2 {[%clk 0:00:08]}  Kxd6 {[%clk 0:00:43]} 45. Rc8 {[%clk 0:00:08]}  Rg7 {[%clk 0:00:42]} 46. Kh3 {[%clk 0:00:08]}  Kd5 {[%clk 0:00:38]} 47. Rc5+ {[%clk 0:00:08]}  Kd4 {[%clk 0:00:38]} 48. Bg1+ {[%clk 0:00:08]}  Kd3 {[%clk 0:00:38]} 49. Bh2 {[%clk 0:00:08]}  Rfg5 {[%clk 0:00:36]} 50. Bxe5 {[%clk 0:00:07]}  Rf7 {[%clk 0:00:32]} 51. f4 {[%clk 0:00:06]}  Rgf5 {[%clk 0:00:29]} 52. Rc3+ {[%clk 0:00:06]}  Kd2 {[%clk 0:00:29]} 53. Rg3 {[%clk 0:00:05]}  h4 {[%clk 0:00:29]} 54. Rg4 {[%clk 0:00:05]}  Rd7 {[%clk 0:00:27]} 55. Rxh4 {[%clk 0:00:04]}  Rd3+ {[%clk 0:00:27]} 56. Kg4 {[%clk 0:00:04]}  Rf8 {[%clk 0:00:28]} 57. Rh7 {[%clk 0:00:03]}  Rxa3 {[%clk 0:00:25]} 58. Rxb7 {[%clk 0:00:03]}  Rg8+ {[%clk 0:00:20]} 59. Rg7 {[%clk 0:00:00]}  Rf8 {[%clk 0:00:20]} 0-1

[Event "December 12 Early 2023"]
[Site "https://www.chess.com"]
[Date "2023.12.12"]
[Round "1"]
[White "Xie, Bryan"]
[Black "Hua, Lefong"]
[Result "1-0"]
[Board "114"]
[TimeControl "180+1"]
[WhiteFideId "30941296"]
[BlackFideId "2602253"]
[WhiteElo "2395"]
[BlackElo "2700"]
[WhiteTeam "USA"]
[BlackTeam "CAN"]
[WhiteClock "0:00:09"]
[BlackClock "0:00:43"]

1. e4 {[%clk 0:02:57]}  c5 {[%clk 0:02:59]} 2. Nf3 {[%clk 0:02:57]}  g6 {[%clk 0:03:00]} 3. d4 {[%clk 0:02:57]}  cxd4 {[%clk 0:03:01]} 4. Nxd4 {[%clk 0:02:56]}  Bg7 {[%clk 0:03:01]} 5. c4 {[%clk 0:02:56]}  Nc6 {[%clk 0:03:01]} 6. Be3 {[%clk 0:02:57]}  Nf6 {[%clk 0:03:01]} 7. Nc3 {[%clk 0:02:58]}  O-O {[%clk 0:03:01]} 8. Be2 {[%clk 0:02:57]}  d6 {[%clk 0:03:01]} 9. O-O {[%clk 0:02:57]}  Bd7 {[%clk 0:03:02]} 10. Rc1 {[%clk 0:02:57]}  Nxd4 {[%clk 0:03:00]} 11. Bxd4 {[%clk 0:02:58]}  Bc6 {[%clk 0:03:01]} 12. f3 {[%clk 0:02:58]}  a5 {[%clk 0:03:01]} 13. Nd5 {[%clk 0:02:51]}  Bxd5 {[%clk 0:02:58]} 14. cxd5 {[%clk 0:02:50]}  Nd7 {[%clk 0:02:58]} 15. Be3 {[%clk 0:02:38]}  Nc5 {[%clk 0:02:55]} 16. b3 {[%clk 0:02:33]}  Qb6 {[%clk 0:02:51]} 17. Kh1 {[%clk 0:02:33]}  Rfc8 {[%clk 0:02:44]} 18. Qd2 {[%clk 0:02:30]}  Qb4 {[%clk 0:02:43]} 19. Rfd1 {[%clk 0:02:13]}  Qxd2 {[%clk 0:02:41]} 20. Rxd2 {[%clk 0:02:14]}  b6 {[%clk 0:02:30]} 21. Bb5 {[%clk 0:02:09]}  h5 {[%clk 0:02:15]} 22. Rdc2 {[%clk 0:02:02]}  Rf8 {[%clk 0:02:06]} 23. Kg1 {[%clk 0:01:51]}  f5 {[%clk 0:02:01]} 24. exf5 {[%clk 0:01:37]}  Rxf5 {[%clk 0:02:01]} 25. Bxc5 {[%clk 0:01:37]}  bxc5 {[%clk 0:01:58]} 26. Re2 {[%clk 0:01:38]}  Kf8 {[%clk 0:01:55]} 27. Rce1 {[%clk 0:01:34]}  Ra7 {[%clk 0:01:50]} 28. Bc6 {[%clk 0:01:29]}  Be5 {[%clk 0:01:44]} 29. g3 {[%clk 0:01:29]}  Rxf3 {[%clk 0:01:41]} 30. Rf1 {[%clk 0:01:12]}  Rf6 {[%clk 0:01:39]} 31. Rc1 {[%clk 0:01:01]}  Ra6 {[%clk 0:01:35]} 32. Rc4 {[%clk 0:01:00]}  Rb6 {[%clk 0:01:30]} 33. Ra4 {[%clk 0:00:46]}  Bc3 {[%clk 0:01:30]} 34. Kg2 {[%clk 0:00:43]}  e5 {[%clk 0:01:20]} 35. g4 {[%clk 0:00:27]}  hxg4 {[%clk 0:01:16]} 36. Rxg4 {[%clk 0:00:27]}  Rb4 {[%clk 0:01:16]} 37. Rxb4 {[%clk 0:00:22]}  axb4 {[%clk 0:01:16]} 38. Rf2 {[%clk 0:00:23]}  Kg7 {[%clk 0:01:15]} 39. Rxf6 {[%clk 0:00:23]}  Kxf6 {[%clk 0:01:16]} 40. Kf3 {[%clk 0:00:23]}  Kg5 {[%clk 0:01:14]} 41. Ke4 {[%clk 0:00:22]}  Kh4 {[%clk 0:01:13]} 42. Bd7 {[%clk 0:00:23]}  Bd4 {[%clk 0:01:11]} 43. h3 {[%clk 0:00:22]}  Kg3 {[%clk 0:01:10]} 44. Bc8 {[%clk 0:00:17]}  g5 {[%clk 0:01:09]} 45. Bf5 {[%clk 0:00:15]}  Bb2 {[%clk 0:01:08]} 46. Bg4 {[%clk 0:00:15]}  Bc1 {[%clk 0:01:08]} 47. Bf5 {[%clk 0:00:15]}  Bf4 {[%clk 0:01:08]} 48. Bg4 {[%clk 0:00:15]}  Kf2 {[%clk 0:01:09]} 49. Kd3 {[%clk 0:00:15]}  Ke1 {[%clk 0:01:07]} 50. Bf3 {[%clk 0:00:12]}  Bg3 {[%clk 0:01:05]} 51. Bg4 {[%clk 0:00:09]}  e4+ {[%clk 0:01:04]} 52. Kxe4 {[%clk 0:00:09]}  Kd2 {[%clk 0:01:05]} 53. Kf5 {[%clk 0:00:08]}  Bh4 {[%clk 0:01:01]} 54. Ke6 {[%clk 0:00:08]}  Bg3 {[%clk 0:01:02]} 55. Kf5 {[%clk 0:00:08]}  Kc3 {[%clk 0:00:59]} 56. Kxg5 {[%clk 0:00:09]}  Kb2 {[%clk 0:01:00]} 57. Be2 {[%clk 0:00:07]}  Kxa2 {[%clk 0:01:00]} 58. Bc4 {[%clk 0:00:08]}  Kb2 {[%clk 0:00:54]} 59. h4 {[%clk 0:00:09]}  Kc3 {[%clk 0:00:53]} 60. h5 {[%clk 0:00:10]}  Kd4 {[%clk 0:00:49]} 61. h6 {[%clk 0:00:10]}  Be5 {[%clk 0:00:48]} 62. Kf5 {[%clk 0:00:05]}  Bh8 {[%clk 0:00:44]} 63. Ke6 {[%clk 0:00:03]}  Be5 {[%clk 0:00:44]} 64. Kf7 {[%clk 0:00:03]}  Ke4 {[%clk 0:00:43]} 65. h7 {[%clk 0:00:04]}  Kf5 {[%clk 0:00:43]} 66. Kg8 {[%clk 0:00:04]}  Kg6 {[%clk 0:00:41]} 67. h8=Q {[%clk 0:00:05]}  Bxh8 {[%clk 0:00:42]} 68. Kxh8 {[%clk 0:00:06]}  Kf7 {[%clk 0:00:42]} 69. Kh7 {[%clk 0:00:07]}  Kf6 {[%clk 0:00:42]} 70. Kg8 {[%clk 0:00:08]}  Ke7 {[%clk 0:00:42]} 71. Kg7 {[%clk 0:00:09]}  Ke8 {[%clk 0:00:43]} 72. Kf6 {[%clk 0:00:08]}  Kd7 {[%clk 0:00:43]} 73. Kf7 {[%clk 0:00:09]} 1-0

[Event "December 12 Early 2023"]
[Site "https://www.chess.com"]
[Date "2023.12.12"]
[Round "1"]
[White "Yaran, Siar"]
[Black "Manon-og, Ramon Jr."]
[Result "1-0"]
[Board "115"]
[TimeControl "180+1"]
[WhiteFideId "6323006"]
[BlackFideId "5200776"]
[WhiteElo "2699"]
[BlackElo "2395"]
[WhiteTeam "TUR"]
[BlackTeam "PHI"]
[WhiteClock "0:00:56"]
[BlackClock "0:00:14"]

1. e4 {[%clk 0:02:59]}  c5 {[%clk 0:02:59]} 2. Nf3 {[%clk 0:02:58]}  d6 {[%clk 0:03:00]} 3. d4 {[%clk 0:02:58]}  cxd4 {[%clk 0:03:01]} 4. Nxd4 {[%clk 0:02:58]}  Nf6 {[%clk 0:03:01]} 5. Nc3 {[%clk 0:02:59]}  a6 {[%clk 0:03:02]} 6. Bg5 {[%clk 0:02:59]}  e6 {[%clk 0:03:02]} 7. f4 {[%clk 0:02:59]}  Be7 {[%clk 0:03:02]} 8. Qf3 {[%clk 0:02:59]}  Qc7 {[%clk 0:03:02]} 9. O-O-O {[%clk 0:02:59]}  Nbd7 {[%clk 0:03:03]} 10. g4 {[%clk 0:02:54]}  h6 {[%clk 0:02:57]} 11. Bxf6 {[%clk 0:02:53]}  Nxf6 {[%clk 0:02:58]} 12. h4 {[%clk 0:02:49]}  e5 {[%clk 0:02:53]} 13. Nf5 {[%clk 0:02:49]}  Bxf5 {[%clk 0:02:53]} 14. exf5 {[%clk 0:02:49]}  O-O-O {[%clk 0:02:39]} 15. g5 {[%clk 0:02:45]}  e4 {[%clk 0:02:35]} 16. Qh3 {[%clk 0:01:47]}  hxg5 {[%clk 0:02:15]} 17. fxg5 {[%clk 0:01:45]}  Qa5 {[%clk 0:01:47]} 18. gxf6 {[%clk 0:01:30]}  Bxf6 {[%clk 0:01:48]} 19. Nxe4 {[%clk 0:01:27]}  Qxa2 {[%clk 0:01:41]} 20. Nxf6 {[%clk 0:01:27]}  gxf6 {[%clk 0:01:22]} 21. Qa3 {[%clk 0:01:23]}  Qxa3 {[%clk 0:01:15]} 22. bxa3 {[%clk 0:01:22]}  d5 {[%clk 0:01:13]} 23. h5 {[%clk 0:01:14]}  b5 {[%clk 0:01:00]} 24. h6 {[%clk 0:01:12]}  Rh7 {[%clk 0:01:00]} 25. Rd4 {[%clk 0:01:11]}  Kc7 {[%clk 0:00:58]} 26. Kd2 {[%clk 0:01:10]}  Kd6 {[%clk 0:00:54]} 27. Bd3 {[%clk 0:01:09]}  Rdh8 {[%clk 0:00:45]} 28. Rdh4 {[%clk 0:01:08]}  Rg8 {[%clk 0:00:45]} 29. a4 {[%clk 0:01:06]}  Rg2+ {[%clk 0:00:41]} 30. Ke3 {[%clk 0:01:05]}  Ke5 {[%clk 0:00:39]} 31. axb5 {[%clk 0:01:00]}  axb5 {[%clk 0:00:40]} 32. Rb4 {[%clk 0:01:00]}  Rg3+ {[%clk 0:00:23]} 33. Kf2 {[%clk 0:00:58]}  Rg5 {[%clk 0:00:20]} 34. Rxb5 {[%clk 0:00:57]}  Kd4 {[%clk 0:00:14]} 35. Rb6 {[%clk 0:00:56]} 1-0

[Event "December 12 Early 2023"]
[Site "https://www.chess.com"]
[Date "2023.12.12"]
[Round "1"]
[White "Chinguun, Sumiya"]
[Black "Carrasco Miranda, Andres"]
[Result "1-0"]
[Board "117"]
[TimeControl "180+1"]
[WhiteFideId "4902572"]
[BlackFideId "3405990"]
[WhiteElo "2687"]
[BlackElo "2390"]
[WhiteTeam "MGL"]
[BlackTeam "CHI"]
[WhiteClock "0:02:30"]
[BlackClock "0:01:26"]

1. e4 {[%clk 0:02:59]}  e5 {[%clk 0:02:58]} 2. Nf3 {[%clk 0:03:00]}  Nc6 {[%clk 0:02:58]} 3. Bc4 {[%clk 0:03:00]}  Bc5 {[%clk 0:02:58]} 4. O-O {[%clk 0:03:00]}  Nf6 {[%clk 0:02:58]} 5. d3 {[%clk 0:03:01]}  d6 {[%clk 0:02:57]} 6. c3 {[%clk 0:03:01]}  a5 {[%clk 0:02:57]} 7. a4 {[%clk 0:03:01]}  Ba7 {[%clk 0:02:57]} 8. Bg5 {[%clk 0:03:01]}  h6 {[%clk 0:02:57]} 9. Bh4 {[%clk 0:03:02]}  g5 {[%clk 0:02:57]} 10. Bg3 {[%clk 0:03:02]}  Be6 {[%clk 0:02:52]} 11. Nbd2 {[%clk 0:03:00]}  Qd7 {[%clk 0:02:51]} 12. Rb1 {[%clk 0:02:59]}  Bg4 {[%clk 0:02:45]} 13. Qb3 {[%clk 0:02:57]}  Bb6 {[%clk 0:02:34]} 14. Bb5 {[%clk 0:02:57]}  Be6 {[%clk 0:02:33]} 15. Qc2 {[%clk 0:02:56]}  Nh5 {[%clk 0:02:33]} 16. d4 {[%clk 0:02:55]}  exd4 {[%clk 0:02:09]} 17. Nxd4 {[%clk 0:02:53]}  O-O {[%clk 0:01:59]} 18. N2f3 {[%clk 0:02:48]}  g4 {[%clk 0:01:52]} 19. Nh4 {[%clk 0:02:43]}  Bxd4 {[%clk 0:01:45]} 20. cxd4 {[%clk 0:02:41]}  Nxd4 {[%clk 0:01:45]} 21. Qd2 {[%clk 0:02:41]}  Nxb5 {[%clk 0:01:43]} 22. axb5 {[%clk 0:02:41]}  Kg7 {[%clk 0:01:40]} 23. b6 {[%clk 0:02:36]}  cxb6 {[%clk 0:01:32]} 24. Bxd6 {[%clk 0:02:36]}  Rad8 {[%clk 0:01:30]} 25. Bxf8+ {[%clk 0:02:30]}  Kxf8 {[%clk 0:01:29]} 26. Qxh6+ {[%clk 0:02:30]}  Ng7 {[%clk 0:01:26]} 27. Qh8+ {[%clk 0:02:30]} 1-0

[Event "December 12 Early 2023"]
[Site "https://www.chess.com"]
[Date "2023.12.12"]
[Round "1"]
[White "Matveeva, Olga"]
[Black "Schnaider, Ilan"]
[Result "1/2-1/2"]
[Board "120"]
[TimeControl "180+1"]
[WhiteFideId "24107018"]
[BlackFideId "169013"]
[WhiteElo "2385"]
[BlackElo "2680"]
[WhiteTeam "RUS"]
[BlackTeam "ARG"]
[WhiteClock "0:00:14"]
[BlackClock "0:00:14"]

1. d4 {[%clk 0:03:00]}  d5 {[%clk 0:02:59]} 2. c4 {[%clk 0:03:01]}  c6 {[%clk 0:03:00]} 3. Nf3 {[%clk 0:03:01]}  Nf6 {[%clk 0:03:00]} 4. Qb3 {[%clk 0:03:02]}  dxc4 {[%clk 0:02:59]} 5. Qxc4 {[%clk 0:03:03]}  Bf5 {[%clk 0:02:59]} 6. g3 {[%clk 0:03:03]}  e6 {[%clk 0:03:00]} 7. Bg2 {[%clk 0:03:04]}  Be7 {[%clk 0:02:59]} 8. O-O {[%clk 0:03:04]}  h6 {[%clk 0:03:00]} 9. Nc3 {[%clk 0:03:04]}  O-O {[%clk 0:02:59]} 10. Re1 {[%clk 0:03:03]}  Ne4 {[%clk 0:02:57]} 11. Qb3 {[%clk 0:02:56]}  Qc8 {[%clk 0:02:52]} 12. Ne5 {[%clk 0:02:52]}  Nxc3 {[%clk 0:02:49]} 13. bxc3 {[%clk 0:02:53]}  Nd7 {[%clk 0:02:49]} 14. e4 {[%clk 0:02:49]}  Bh7 {[%clk 0:02:43]} 15. Nc4 {[%clk 0:02:38]}  Rd8 {[%clk 0:02:33]} 16. Ba3 {[%clk 0:02:31]}  Bxa3 {[%clk 0:02:25]} 17. Qxa3 {[%clk 0:02:32]}  Nb6 {[%clk 0:02:24]} 18. Nd6 {[%clk 0:02:29]}  Qc7 {[%clk 0:02:21]} 19. e5 {[%clk 0:02:29]}  Nc8 {[%clk 0:02:13]} 20. Ne4 {[%clk 0:02:22]}  Ne7 {[%clk 0:02:10]} 21. Rad1 {[%clk 0:02:18]}  Bxe4 {[%clk 0:02:09]} 22. Bxe4 {[%clk 0:02:17]}  Nd5 {[%clk 0:02:03]} 23. c4 {[%clk 0:02:16]}  Nb6 {[%clk 0:02:03]} 24. Qc1 {[%clk 0:02:08]}  Rd7 {[%clk 0:02:00]} 25. Bb1 {[%clk 0:02:05]}  Rad8 {[%clk 0:01:57]} 26. Re4 {[%clk 0:02:01]}  c5 {[%clk 0:01:50]} 27. d5 {[%clk 0:01:06]}  exd5 {[%clk 0:01:48]} 28. cxd5 {[%clk 0:01:05]}  Rxd5 {[%clk 0:01:48]} 29. Rde1 {[%clk 0:01:03]}  Rd4 {[%clk 0:01:44]} 30. Qc2 {[%clk 0:00:57]}  Rd2 {[%clk 0:01:29]} 31. Qc3 {[%clk 0:00:56]}  Rd1 {[%clk 0:01:17]} 32. e6 {[%clk 0:00:52]}  fxe6 {[%clk 0:01:12]} 33. Rxe6 {[%clk 0:00:51]}  Qf7 {[%clk 0:01:09]} 34. Qc2 {[%clk 0:00:46]}  Qxe6 {[%clk 0:01:02]} 35. Rxd1 {[%clk 0:00:38]}  Rxd1+ {[%clk 0:01:01]} 36. Qxd1 {[%clk 0:00:39]}  Nd5 {[%clk 0:00:59]} 37. Bc2 {[%clk 0:00:35]}  Nb4 {[%clk 0:00:52]} 38. Qd8+ {[%clk 0:00:31]}  Kf7 {[%clk 0:00:51]} 39. Bb3 {[%clk 0:00:28]}  c4 {[%clk 0:00:51]} 40. Qc7+ {[%clk 0:00:28]}  Kg6 {[%clk 0:00:48]} 41. Bxc4 {[%clk 0:00:27]}  Qe1+ {[%clk 0:00:35]} 42. Kg2 {[%clk 0:00:28]}  Qe4+ {[%clk 0:00:36]} 43. Kg1 {[%clk 0:00:24]}  Kh7 {[%clk 0:00:28]} 44. Qf7 {[%clk 0:00:18]}  Nd3 {[%clk 0:00:15]} 45. Qg8+ {[%clk 0:00:17]}  Kg6 {[%clk 0:00:16]} 46. Qf7+ {[%clk 0:00:17]}  Kh7 {[%clk 0:00:13]} 47. Qg8+ {[%clk 0:00:15]}  Kg6 {[%clk 0:00:13]} 48. Qf7+ {[%clk 0:00:14]}  Kh7 {[%clk 0:00:14]} 1/2-1/2

[Event "December 12 Early 2023"]
[Site "https://www.chess.com"]
[Date "2023.12.12"]
[Round "1"]
[White "Kislinsky, Alexey"]
[Black "Mesquita, Eduardo Barbosa"]
[Result "0-1"]
[Board "121"]
[TimeControl "180+1"]
[WhiteFideId "14108801"]
[BlackFideId "22757163"]
[WhiteElo "2678"]
[BlackElo "2385"]
[WhiteTeam "CZE"]
[BlackTeam "BRA"]
[WhiteClock "0:00:11"]
[BlackClock "0:00:14"]

1. e4 {[%clk 0:03:00]}  c5 {[%clk 0:03:00]} 2. c3 {[%clk 0:02:58]}  Nf6 {[%clk 0:02:58]} 3. e5 {[%clk 0:02:58]}  Nd5 {[%clk 0:02:59]} 4. Bc4 {[%clk 0:02:58]}  Nb6 {[%clk 0:02:59]} 5. Bb3 {[%clk 0:02:58]}  d5 {[%clk 0:02:56]} 6. exd6 {[%clk 0:02:58]}  Qxd6 {[%clk 0:02:57]} 7. Nf3 {[%clk 0:02:57]}  e6 {[%clk 0:02:52]} 8. O-O {[%clk 0:02:54]}  Be7 {[%clk 0:02:52]} 9. d4 {[%clk 0:02:54]}  O-O {[%clk 0:02:44]} 10. dxc5 {[%clk 0:02:53]}  Qxc5 {[%clk 0:02:45]} 11. Qe2 {[%clk 0:02:51]}  Nc6 {[%clk 0:02:43]} 12. Nbd2 {[%clk 0:02:50]}  Na5 {[%clk 0:02:34]} 13. Bc2 {[%clk 0:02:46]}  Qc7 {[%clk 0:02:31]} 14. Ne4 {[%clk 0:02:36]}  h6 {[%clk 0:02:31]} 15. Ng3 {[%clk 0:02:35]}  Nd5 {[%clk 0:02:18]} 16. Rd1 {[%clk 0:02:31]}  Rd8 {[%clk 0:02:12]} 17. Nh5 {[%clk 0:01:48]}  Bf8 {[%clk 0:01:40]} 18. Ne5 {[%clk 0:01:26]}  Nc6 {[%clk 0:00:48]} 19. Nxc6 {[%clk 0:01:16]}  bxc6 {[%clk 0:00:49]} 20. a3 {[%clk 0:01:07]}  a5 {[%clk 0:00:45]} 21. c4 {[%clk 0:01:06]}  Ba6 {[%clk 0:00:42]} 22. Qe4 {[%clk 0:01:04]}  g6 {[%clk 0:00:21]} 23. cxd5 {[%clk 0:00:36]}  cxd5 {[%clk 0:00:21]} 24. Qd4 {[%clk 0:00:23]}  gxh5 {[%clk 0:00:19]} 25. Bb1 {[%clk 0:00:17]}  Bg7 {[%clk 0:00:18]} 26. Qe3 {[%clk 0:00:18]}  Qe5 {[%clk 0:00:17]} 27. Qf3 {[%clk 0:00:18]}  Rab8 {[%clk 0:00:15]} 28. Ra2 {[%clk 0:00:15]}  Be2 {[%clk 0:00:14]} 29. Re1 {[%clk 0:00:11]} 0-1

[Event "December 12 Early 2023"]
[Site "https://www.chess.com"]
[Date "2023.12.12"]
[Round "1"]
[White "Vishnu Prasanna. V"]
[Black "Kolmagorov, Alexey"]
[Result "1/2-1/2"]
[Board "125"]
[TimeControl "180+1"]
[WhiteFideId "5030692"]
[BlackFideId "34129402"]
[WhiteElo "2675"]
[BlackElo "2375"]
[WhiteTeam "IND"]
[BlackTeam "RUS"]
[WhiteClock "0:01:16"]
[BlackClock "0:00:10"]

1. Nf3 {[%clk 0:02:55]}  Nf6 {[%clk 0:02:58]} 2. g3 {[%clk 0:02:54]}  b5 {[%clk 0:02:56]} 3. Bg2 {[%clk 0:02:49]}  Bb7 {[%clk 0:02:56]} 4. O-O {[%clk 0:02:44]}  c5 {[%clk 0:02:52]} 5. d3 {[%clk 0:02:44]}  e6 {[%clk 0:02:52]} 6. e4 {[%clk 0:02:44]}  d6 {[%clk 0:02:51]} 7. a4 {[%clk 0:02:44]}  a6 {[%clk 0:02:50]} 8. Re1 {[%clk 0:02:40]}  Be7 {[%clk 0:02:48]} 9. d4 {[%clk 0:02:37]}  Nxe4 {[%clk 0:02:15]} 10. axb5 {[%clk 0:02:28]}  axb5 {[%clk 0:02:14]} 11. Rxa8 {[%clk 0:02:28]}  Bxa8 {[%clk 0:02:15]} 12. dxc5 {[%clk 0:02:28]}  Nxc5 {[%clk 0:02:03]} 13. Qe2 {[%clk 0:02:28]}  Bc6 {[%clk 0:01:46]} 14. Nd4 {[%clk 0:02:26]}  Bxg2 {[%clk 0:01:26]} 15. Qxb5+ {[%clk 0:02:25]}  Nbd7 {[%clk 0:01:25]} 16. Kxg2 {[%clk 0:02:22]}  Qa8+ {[%clk 0:01:19]} 17. Kg1 {[%clk 0:02:18]}  O-O {[%clk 0:00:45]} 18. b4 {[%clk 0:02:17]}  Rb8 {[%clk 0:00:41]} 19. Qc6 {[%clk 0:02:16]}  Qa1 {[%clk 0:00:24]} 20. bxc5 {[%clk 0:02:15]}  Rxb1 {[%clk 0:00:20]} 21. Nb3 {[%clk 0:02:04]}  Qc3 {[%clk 0:00:14]} 22. Qxd7 {[%clk 0:01:25]}  Qxe1+ {[%clk 0:00:13]} 23. Kg2 {[%clk 0:01:25]}  Qe4+ {[%clk 0:00:13]} 24. Kh3 {[%clk 0:01:21]}  Qf5+ {[%clk 0:00:10]} 25. Kg2 {[%clk 0:01:21]}  Qe4+ {[%clk 0:00:10]} 26. f3 {[%clk 0:01:21]}  Qxc2+ {[%clk 0:00:09]} 27. Kh3 {[%clk 0:01:19]}  Qf5+ {[%clk 0:00:09]} 28. Kg2 {[%clk 0:01:19]}  Qc2+ {[%clk 0:00:09]} 29. Kh3 {[%clk 0:01:16]}  Qf5+ {[%clk 0:00:09]} 30. Kg2 {[%clk 0:01:16]}  Qc2+ {[%clk 0:00:10]} 1/2-1/2

[Event "December 12 Early 2023"]
[Site "https://www.chess.com"]
[Date "2023.12.12"]
[Round "1"]
[White "Ozcan, Kaan"]
[Black "Zavgorodniy, Sergiy"]
[Result "0-1"]
[Board "126"]
[TimeControl "180+1"]
[WhiteFideId "34566422"]
[BlackFideId "14110148"]
[WhiteElo "2374"]
[BlackElo "2674"]
[WhiteTeam "TUR"]
[BlackTeam "UKR"]
[WhiteClock "0:00:12"]
[BlackClock "0:00:12"]

1. Nf3 {[%clk 0:02:57]}  Nf6 {[%clk 0:02:59]} 2. g3 {[%clk 0:02:58]}  d6 {[%clk 0:02:58]} 3. Bg2 {[%clk 0:02:58]}  e5 {[%clk 0:02:59]} 4. d4 {[%clk 0:02:57]}  e4 {[%clk 0:02:57]} 5. Ng5 {[%clk 0:02:54]}  d5 {[%clk 0:02:57]} 6. c4 {[%clk 0:02:53]}  c6 {[%clk 0:02:56]} 7. Nc3 {[%clk 0:02:52]}  Bb4 {[%clk 0:02:54]} 8. O-O {[%clk 0:02:48]}  Bxc3 {[%clk 0:02:54]} 9. bxc3 {[%clk 0:02:48]}  O-O {[%clk 0:02:54]} 10. cxd5 {[%clk 0:02:46]}  cxd5 {[%clk 0:02:53]} 11. c4 {[%clk 0:02:46]}  h6 {[%clk 0:02:53]} 12. Nh3 {[%clk 0:02:46]}  dxc4 {[%clk 0:02:53]} 13. Nf4 {[%clk 0:02:39]}  g5 {[%clk 0:02:45]} 14. Nh3 {[%clk 0:02:39]}  Nc6 {[%clk 0:02:33]} 15. Bb2 {[%clk 0:02:29]}  Nd5 {[%clk 0:02:29]} 16. Rc1 {[%clk 0:02:27]}  b5 {[%clk 0:02:26]} 17. Qc2 {[%clk 0:02:26]}  f5 {[%clk 0:02:13]} 18. Rfd1 {[%clk 0:02:06]}  Be6 {[%clk 0:02:10]} 19. Ba1 {[%clk 0:01:35]}  a6 {[%clk 0:02:00]} 20. Qb2 {[%clk 0:01:35]}  Qd7 {[%clk 0:01:58]} 21. f3 {[%clk 0:01:28]}  exf3 {[%clk 0:01:51]} 22. exf3 {[%clk 0:01:29]}  Rae8 {[%clk 0:01:36]} 23. f4 {[%clk 0:01:18]}  g4 {[%clk 0:01:33]} 24. Nf2 {[%clk 0:01:18]}  Kh7 {[%clk 0:01:33]} 25. Qb1 {[%clk 0:01:13]}  h5 {[%clk 0:01:31]} 26. Re1 {[%clk 0:01:11]}  Bf7 {[%clk 0:01:09]} 27. a4 {[%clk 0:00:52]}  Ncb4 {[%clk 0:01:07]} 28. axb5 {[%clk 0:00:48]}  axb5 {[%clk 0:01:08]} 29. Re5 {[%clk 0:00:42]}  Rxe5 {[%clk 0:00:58]} 30. dxe5 {[%clk 0:00:41]}  Be6 {[%clk 0:00:55]} 31. Rd1 {[%clk 0:00:40]}  Qe7 {[%clk 0:00:50]} 32. h3 {[%clk 0:00:18]}  Ne3 {[%clk 0:00:44]} 33. Re1 {[%clk 0:00:17]}  Nxg2 {[%clk 0:00:44]} 34. Kxg2 {[%clk 0:00:18]}  Kg8 {[%clk 0:00:35]} 35. hxg4 {[%clk 0:00:18]}  hxg4 {[%clk 0:00:36]} 36. Bc3 {[%clk 0:00:17]}  Nd5 {[%clk 0:00:34]} 37. Bd4 {[%clk 0:00:17]}  b4 {[%clk 0:00:32]} 38. Rc1 {[%clk 0:00:17]}  c3 {[%clk 0:00:31]} 39. Nd3 {[%clk 0:00:17]}  Rc8 {[%clk 0:00:26]} 40. Bc5 {[%clk 0:00:16]}  Rxc5 {[%clk 0:00:24]} 41. Nxc5 {[%clk 0:00:16]}  Qxc5 {[%clk 0:00:25]} 42. Qd3 {[%clk 0:00:15]}  b3 {[%clk 0:00:22]} 43. Ra1 {[%clk 0:00:15]}  Kf7 {[%clk 0:00:13]} 44. Qa6 {[%clk 0:00:13]}  Ne7 {[%clk 0:00:13]} 45. Qa8 {[%clk 0:00:12]}  Qc6+ {[%clk 0:00:13]} 46. Qxc6 {[%clk 0:00:11]}  Nxc6 {[%clk 0:00:14]} 47. Rb1 {[%clk 0:00:11]}  b2 {[%clk 0:00:13]} 48. Kf2 {[%clk 0:00:11]}  Ba2 {[%clk 0:00:12]} 49. Rxb2 {[%clk 0:00:12]} 0-1